fUST/lending_fUST_20250222
["ID","MTS","AMOUNT","RATE_DAILY","PERIOD"]
[353989750,1740175835992,-500.0,0.00013698,2]
[353989752,1740175836001,-500.0,0.00013698,2]
[353989754,1740175836011,-512.14,0.00013698,2]
[353989756,1740175836020,-3505.3,0.00013698,2]
[353989758,1740175836029,-500.0,0.00013698,2]
[353989760,1740175836039,-500.0,0.00013698,2]
[353989762,1740175836050,-500.0,0.00013698,2]
[353989765,1740175836060,-500.0,0.00013698,2]
[353989767,1740175836069,-500.0,0.00013698,2]
[353989769,1740175836079,-1101.28,0.00013698,2]
[353989771,1740175836088,-253.19610341,0.00013698,2]
[353989773,1740175836097,-500.0,0.00013698,2]
[353989775,1740175836108,-500.0,0.00013698,2]
[353989777,1740175836118,-500.0,0.00013698,2]
[353989779,1740175836128,-500.0,0.00013698,2]
[353989781,1740175836138,-500.0,0.00013698,2]
[353989783,1740175836147,-500.0,0.00013698,2]
[353989785,1740175836156,-500.0,0.00013698,2]
[353989787,1740175836166,-500.0,0.00013698,2]
[353989789,1740175836175,-500.0,0.00013698,2]
[353989791,1740175836185,-663.88,0.00013698,2]
[353989793,1740175836195,-500.0,0.00013698,2]
[353989795,1740175836205,-180.14438665,0.00013698,2]
[353989797,1740175836215,-500.0,0.00013698,2]
[353989799,1740175836224,-500.0,0.00013698,2]
[353989812,1740175836325,-500.0,0.00013698,2]
[353989814,1740175836346,-508.28344812,0.00013698,2]
[353989816,1740175836355,-500.0,0.00013698,2]
[353989818,1740175836365,-500.0,0.00013698,2]
[353989820,1740175836374,-391.442079,0.00013698,2]
[353989822,1740175836383,-500.0,0.00013698,2]
[353989824,1740175836392,-500.0,0.00013698,2]
[353989826,1740175836402,-500.0,0.00013698,2]
[353989828,1740175836411,-2265.38,0.00013698,2]
[353989830,1740175836420,-500.0,0.00013698,2]
[353989832,1740175836430,-193.26635515,0.00013698,2]
[353989834,1740175836440,-500.0,0.00013698,2]
[353989836,1740175836449,-500.0,0.00013698,2]
[353989838,1740175836458,-508.30349694,0.00013698,2]
[353989840,1740175836467,-500.0,0.00013698,2]
[353989842,1740175836476,-500.0,0.00013698,2]
[353989844,1740175836485,-841.18,0.00013698,2]
[353989846,1740175836495,-500.0,0.00013698,2]
[353989848,1740175836504,-500.0,0.00013698,2]
[353989850,1740175836513,-530.21290272,0.00013698,2]
[353989852,1740175836522,-500.0,0.00013698,2]
[353989854,1740175836531,-500.0,0.00013698,2]
[353989856,1740175836541,-424.13738773,0.00013698,2]
[353989858,1740175836552,-500.0,0.00013698,2]
[353989860,1740175836561,-500.0,0.00013698,2]
[353989862,1740175836571,-500.0,0.00013698,2]
[353989864,1740175836580,-500.0,0.00013698,2]
[353989866,1740175836590,-500.0,0.00013698,2]
[353989868,1740175836601,-500.0,0.00013698,2]
[353989870,1740175836610,-500.0,0.00013698,2]
[353989872,1740175836619,-500.0,0.00013698,2]
[353989874,1740175836631,-870.29,0.00013698,2]
[353989876,1740175836641,-500.0,0.00013698,2]
[353989878,1740175836650,-500.0,0.00013698,2]
[353989880,1740175836659,-500.0,0.00013698,2]
[353989882,1740175836669,-791.65,0.00013698,2]
[353989884,1740175836678,-500.0,0.00013698,2]
[353989886,1740175836688,-500.0,0.00013698,2]
[353989888,1740175836699,-641.26784326,0.00013698,2]
[353989890,1740175836708,-13190.1203583,0.00013699,2]
[353989892,1740175836717,-997.495139,0.00013699,2]
[353989894,1740175836728,-177.976523,0.00013699,2]
[353989896,1740175836737,-151.0,0.000137,2]
[353989898,1740175836747,-241.63049641,0.00013773,2]
[353990035,1740175838019,-500.0,0.00013698,2]
[353990037,1740175838029,-500.0,0.00013698,2]
[353990039,1740175838038,-500.0,0.00013698,2]
[353990041,1740175838048,-24.51424637,0.00013773,2]
[353990043,1740175838057,-455.18796006,0.00013773,2]
[353990045,1740175838066,-500.0,0.00013773,2]
[353990047,1740175838076,-1194.42,0.00013778,2]
[353990049,1740175838086,-500.0,0.00013779,2]
[353990051,1740175838095,-500.0,0.00013779,2]
[353990053,1740175838105,-216.80201597,0.00013779,2]
[353990056,1740175838117,-283.19798403,0.00013779,2]
[353990058,1740175838126,-1194.42,0.00013779,2]
[353990060,1740175838135,-1194.42,0.00013779,2]
[353990062,1740175838145,-1194.42,0.00013779,2]
[353990064,1740175838155,-500.76883148,0.0001378,2]
[353990066,1740175838164,-500.0,0.0001378,2]
[353990068,1740175838173,-500.0,0.0001378,2]
[353990070,1740175838182,-466.96,0.0001378,2]
[353990072,1740175838192,-500.0,0.0001378,2]
[353990074,1740175838201,-500.0,0.0001378,2]
[353990076,1740175838210,-500.0,0.0001378,2]
[353990078,1740175838220,-500.0,0.0001378,2]
[353990080,1740175838229,-500.0,0.0001378,2]
[353990082,1740175838239,-500.0,0.0001378,2]
[353990084,1740175838248,-500.0,0.0001378,2]
[353990086,1740175838257,-500.0,0.0001378,2]
[353990088,1740175838266,-500.0,0.0001378,2]
[353990090,1740175838275,-503.32545167,0.0001378,2]
[353990092,1740175838284,-500.0,0.0001378,2]
[353990094,1740175838294,-500.0,0.0001378,2]
[353990096,1740175838304,-500.0,0.0001378,2]
[353990098,1740175838313,-500.0,0.0001378,2]
[353990100,1740175838322,-500.0,0.0001378,2]
[353990102,1740175838331,-500.0,0.0001378,2]
[353990104,1740175838340,-500.0,0.0001378,2]
[353990106,1740175838350,-500.0,0.0001378,2]
[353990108,1740175838359,-228.04,0.0001378,2]
[353990110,1740175838368,-500.0,0.0001378,2]
[353990112,1740175838377,-500.0,0.0001378,2]
[353990114,1740175838386,-500.0,0.0001378,2]
[353990115,1740175838395,-500.0,0.0001378,2]
[353990117,1740175838404,-500.0,0.0001378,2]
[353990119,1740175838413,-500.0,0.0001378,2]
[353990121,1740175838422,-502.59154074,0.0001378,2]
[353990123,1740175838431,-500.0,0.0001378,2]
[353990125,1740175838441,-500.0,0.0001378,2]
[353990127,1740175838450,-500.0,0.0001378,2]
[353990129,1740175838459,-500.0,0.0001378,2]
[353990131,1740175838469,-500.0,0.0001378,2]
[353990133,1740175838479,-500.0,0.0001378,2]
[353990136,1740175838488,-500.0,0.0001378,2]
[353990137,1740175838498,-500.0,0.0001378,2]
[353990139,1740175838507,-500.0,0.0001378,2]
[353990140,1740175838517,-500.0,0.0001378,2]
[353990141,1740175838527,-456.71300349,0.0001378,2]
[353990142,1740175838537,-500.0,0.0001378,2]
[353990143,1740175838548,-500.0,0.0001378,2]
[353990144,1740175838562,-500.0,0.0001378,2]
[353990145,1740175838573,-500.0,0.0001378,2]
[353990146,1740175838585,-500.0,0.0001378,2]
[353990147,1740175838597,-500.0,0.0001378,2]
[353990148,1740175838611,-500.0,0.0001378,2]
[353990149,1740175838621,-539.86,0.0001378,2]
[353990150,1740175838631,-500.0,0.0001378,2]
[353990151,1740175838644,-500.0,0.0001378,2]
[353990152,1740175838656,-500.0,0.0001378,2]
[353990153,1740175838666,-500.0,0.0001378,2]
[353990154,1740175838677,-500.0,0.0001378,2]
[353990155,1740175838687,-500.0,0.0001378,2]
[353990156,1740175838697,-500.0,0.0001378,2]
[353990158,1740175838706,-213.14517632,0.0001378,2]
[353990160,1740175838716,-500.0,0.0001378,2]
[353990162,1740175838724,-265.15,0.0001378,2]
[353990164,1740175838734,-500.0,0.0001378,2]
[353990166,1740175838744,-500.0,0.0001378,2]
[353990168,1740175838754,-365.41627296,0.0001378,2]
[353990170,1740175838763,-500.0,0.0001378,2]
[353990172,1740175838773,-530.51,0.0001378,2]
[353990174,1740175838782,-500.0,0.0001378,2]
[353990176,1740175838791,-500.0,0.0001378,2]
[353990178,1740175838804,-500.0,0.0001378,2]
[353990180,1740175838814,-500.0,0.0001378,2]
[353990182,1740175838823,-683.46,0.0001378,2]
[353990184,1740175838832,-2167.54,0.0001378,2]
[353990186,1740175838842,-500.0,0.0001378,2]
[353990188,1740175838851,-500.0,0.0001378,2]
[353990190,1740175838860,-500.0,0.0001378,2]
[353990192,1740175838869,-500.0,0.0001378,2]
[353990194,1740175838879,-264.57296636,0.0001378,2]
[353990196,1740175838888,-633.28,0.0001378,2]
[353990198,1740175838898,-5963.66,0.0001378,2]
[353990200,1740175838907,-500.0,0.0001378,2]
[353990202,1740175838916,-500.0,0.0001378,2]
[353990204,1740175838926,-500.0,0.0001378,2]
[353990205,1740175838935,-500.0,0.0001378,2]
[353990207,1740175838945,-500.0,0.0001378,2]
[353990209,1740175838955,-1608.18,0.0001378,2]
[353990211,1740175838964,-500.0,0.0001378,2]
[353990213,1740175838974,-624.26,0.0001378,2]
[353990215,1740175838983,-500.0,0.0001378,2]
[353990218,1740175838993,-500.0,0.0001378,2]
[353990219,1740175839003,-500.0,0.0001378,2]
[353990222,1740175839012,-500.0,0.0001378,2]
[353990224,1740175839022,-500.0,0.0001378,2]
[353990226,1740175839032,-596.69,0.0001378,2]
[353990228,1740175839041,-500.0,0.0001378,2]
[353990229,1740175839051,-505.63976261,0.0001378,2]
[353990231,1740175839062,-512.14,0.0001378,2]
[353990234,1740175839072,-3505.3,0.0001378,2]
[353990235,1740175839082,-500.0,0.0001378,2]
[353990237,1740175839091,-500.6036247,0.0001378,2]
[353990240,1740175839100,-500.0,0.0001378,2]
[353990241,1740175839112,-1101.28,0.0001378,2]
[353990243,1740175839122,-500.0,0.0001378,2]
[353990245,1740175839131,-285.02,0.0001378,2]
[353990247,1740175839142,-500.0,0.0001378,2]
[353990250,1740175839152,-364.62900794,0.0001378,2]
[353990251,1740175839161,-500.0,0.0001378,2]
[353990253,1740175839171,-500.0,0.0001378,2]
[353990255,1740175839181,-663.88,0.0001378,2]
[353990257,1740175839190,-500.0,0.0001378,2]
[353990259,1740175839200,-500.0,0.0001378,2]
[353990261,1740175839210,-2265.38,0.0001378,2]
[353990263,1740175839221,-500.0,0.0001378,2]
[353990265,1740175839231,-500.0,0.0001378,2]
[353990267,1740175839241,-841.18,0.0001378,2]
[353990269,1740175839251,-500.0,0.0001378,2]
[353990271,1740175839261,-500.0,0.0001378,2]
[353990273,1740175839271,-500.0,0.0001378,2]
[353990275,1740175839282,-500.0,0.0001378,2]
[353990277,1740175839291,-500.0,0.0001378,2]
[353990279,1740175839303,-512.66383629,0.0001378,2]
[353990281,1740175839313,-500.0,0.0001378,2]
[353990283,1740175839322,-870.29,0.0001378,2]
[353990285,1740175839331,-500.0,0.0001378,2]
[353990287,1740175839340,-791.65,0.0001378,2]
[353990289,1740175839350,-500.0,0.0001378,2]
[353990291,1740175839359,-151.0,0.000138,2]
[353990293,1740175839369,-151.0,0.000138,2]
[353990295,1740175839378,-153.0,0.00013847,2]
[353990297,1740175839387,-154.7783581,0.00013847,2]
[353990299,1740175839396,-153.0,0.00013847,2]
[353990301,1740175839406,-154.7783581,0.00013847,2]
[353990303,1740175839416,-153.0,0.00013847,2]
[353990305,1740175839426,-154.7783581,0.00013847,2]
[353990307,1740175839435,-500.0,0.00013862,2]
[353990309,1740175839444,-500.0,0.00013862,2]
[353990310,1740175839453,-1194.42,0.00013862,2]
[353990312,1740175839463,-1194.42,0.00013862,2]
[353990314,1740175839472,-500.0,0.00013863,2]
[353990326,1740175839575,-500.0,0.00013863,2]
[353990329,1740175839585,-500.0,0.00013863,2]
[353990330,1740175839595,-289.76738847,0.00013863,2]
[353990333,1740175839606,-500.0,0.00013863,2]
[353990336,1740175839616,-506.62,0.00013863,2]
[353990337,1740175839626,-564.58,0.00013863,2]
[353990339,1740175839637,-500.0,0.00013863,2]
[353990341,1740175839647,-500.0,0.00013863,2]
[353990343,1740175839656,-566.31,0.00013863,2]
[353990345,1740175839665,-500.0,0.00013863,2]
[353990347,1740175839673,-500.0,0.00013863,2]
[353990349,1740175839684,-500.0,0.00013863,2]
[353990351,1740175839693,-500.0,0.00013863,2]
[353990353,1740175839703,-500.0,0.00013863,2]
[353990355,1740175839713,-500.0,0.00013863,2]
[353990357,1740175839722,-500.0,0.00013863,2]
[353990359,1740175839732,-623.55835108,0.00013863,2]
[353990361,1740175839741,-500.0,0.00013863,2]
[353990363,1740175839751,-500.0,0.00013863,2]
[353990365,1740175839760,-500.0,0.00013863,2]
[353990367,1740175839770,-500.0,0.00013863,2]
[353990369,1740175839779,-500.0,0.00013863,2]
[353990371,1740175839789,-530.51,0.00013863,2]
[353990373,1740175839801,-385.37,0.00013863,2]
[353990375,1740175839810,-500.0,0.00013863,2]
[353990377,1740175839820,-500.0,0.00013863,2]
[353990379,1740175839829,-683.46,0.00013863,2]
[353990381,1740175839839,-2167.54,0.00013863,2]
[353990383,1740175839849,-164.52,0.00013863,2]
[353990386,1740175839859,-633.28,0.00013863,2]
[353990388,1740175839869,-5963.66,0.00013863,2]
[353990389,1740175839878,-500.0,0.00013863,2]
[353990391,1740175839888,-500.0,0.00013863,2]
[353990393,1740175839897,-1608.18,0.00013863,2]
[353990396,1740175839907,-624.26,0.00013863,2]
[353990398,1740175839917,-500.0,0.00013863,2]
[353990399,1740175839926,-500.0,0.00013863,2]
[353990402,1740175839935,-500.0,0.00013863,2]
[353990404,1740175839944,-500.0,0.00013863,2]
[353990405,1740175839953,-596.69,0.00013863,2]
[353990407,1740175839963,-500.0,0.00013863,2]
[353990410,1740175839972,-512.14,0.00013863,2]
[353990411,1740175839981,-3505.3,0.00013863,2]
[353990414,1740175839992,-1101.28,0.00013863,2]
[353990416,1740175840001,-500.0,0.00013863,2]
[353990418,1740175840010,-500.0,0.00013863,2]
[353990419,1740175840020,-663.88,0.00013863,2]
[353990421,1740175840029,-500.0,0.00013863,2]
[353990423,1740175840039,-2265.38,0.00013863,2]
[353990425,1740175840048,-841.18,0.00013863,2]
[353990427,1740175840060,-500.0,0.00013863,2]
[353990429,1740175840069,-500.0,0.00013863,2]
[353990431,1740175840079,-522.04295436,0.00013863,2]
[353990433,1740175840088,-870.29,0.00013863,2]
[353990435,1740175840098,-791.65,0.00013863,2]
[353990437,1740175840108,-500.0,0.00013863,2]
[353990440,1740175840118,-151.0,0.000139,2]
[353990441,1740175840127,-151.0,0.000139,2]
[353990443,1740175840137,-151.0,0.000139,2]
[353990445,1740175840147,-154.7783581,0.000139,2]
[353990447,1740175840156,-153.0,0.000139,2]
[353990449,1740175840166,-153.0,0.000139,2]
[353990451,1740175840175,-500.0,0.00013944,2]
[353990453,1740175840184,-1194.42,0.00013944,2]
[353990455,1740175840194,-1194.42,0.00013944,2]
[353990457,1740175840203,-500.0,0.00013945,2]
[353990459,1740175840213,-500.0,0.00013945,2]
[353990461,1740175840222,-540.22,0.00013945,2]
[353990464,1740175840232,-500.0,0.00013945,2]
[353990465,1740175840242,-500.0,0.00013945,2]
[353990467,1740175840251,-502.0355659,0.00013945,2]
[353990469,1740175840260,-500.0,0.00013945,2]
[353990471,1740175840270,-530.51,0.00013945,2]
[353990473,1740175840280,-500.0,0.00013945,2]
[353990475,1740175840289,-500.0,0.00013945,2]
[353990477,1740175840298,-683.46,0.00013945,2]
[353990479,1740175840308,-2167.54,0.00013945,2]
[353990482,1740175840319,-633.28,0.00013945,2]
[353990484,1740175840328,-5963.66,0.00013945,2]
[353990486,1740175840339,-500.0,0.00013945,2]
[353990488,1740175840348,-500.0,0.00013945,2]
[353990489,1740175840357,-1608.18,0.00013945,2]
[353990491,1740175840367,-624.26,0.00013945,2]
[353990493,1740175840376,-500.0,0.00013945,2]
[353990496,1740175840386,-500.0,0.00013945,2]
[353990497,1740175840395,-500.0,0.00013945,2]
[353990500,1740175840404,-500.0,0.00013945,2]
[353990502,1740175840414,-596.69,0.00013945,2]
[353990504,1740175840423,-500.0,0.00013945,2]
[353990506,1740175840433,-512.14,0.00013945,2]
[353990507,1740175840442,-3505.3,0.00013945,2]
[353990509,1740175840452,-1101.28,0.00013945,2]
[353990511,1740175840462,-500.0,0.00013945,2]
[353990513,1740175840471,-500.0,0.00013945,2]
[353990516,1740175840481,-604.04328119,0.00013945,2]
[353990518,1740175840496,-59.83671881,0.00013945,2]
[353990520,1740175840505,-179.91,0.00013945,2]
[353990522,1740175840514,-64.19577916,0.00013945,2]
[353990642,1740175841716,-168.07151415,0.00013597,2]
[353990644,1740175841726,-221.15848591,0.00013698,2]
[353990654,1740175841813,-278.84151409,0.00013698,2]
[353990656,1740175841824,-500.0,0.00013698,2]
[353990658,1740175841835,-500.0,0.00013698,2]
[353990660,1740175841845,-2201.18422084,0.00013945,2]
[353990662,1740175841855,-841.18,0.00013945,2]
[353990665,1740175841865,-500.0,0.00013945,2]
[353990667,1740175841874,-500.0,0.00013945,2]
[353990669,1740175841883,-870.29,0.00013945,2]
[353990671,1740175841892,-791.65,0.00013945,2]
[353990673,1740175841901,-500.0,0.00013945,2]
[353990675,1740175841910,-295.74603666,0.0001396,2]
[353990676,1740175841919,-500.0,0.00013986,2]
[353990678,1740175841929,-6084.82543319,0.00013987,2]
[353990680,1740175841938,-6084.82543319,0.00013997,2]
[353990682,1740175841948,-1194.42,0.00013999,2]
[353990684,1740175841957,-6084.82543319,0.00014,2]
[353990687,1740175841966,-151.0,0.00014,2]
[353990689,1740175841976,-151.0,0.00014,2]
[353990691,1740175841986,-151.0,0.00014,2]
[353990692,1740175841995,-593.12,0.00014026,2]
[353990694,1740175842004,-1194.42,0.00014026,2]
[353990696,1740175842013,-1194.42,0.00014026,2]
[353990698,1740175842022,-1194.42,0.00014026,2]
[353990700,1740175842031,-1194.42,0.00014026,2]
[353990702,1740175842041,-1194.64586741,0.00014026,2]
[353990705,1740175842051,-500.0,0.00014027,2]
[353990707,1740175842060,-471.44,0.00014027,2]
[353990709,1740175842069,-500.0,0.00014027,2]
[353990711,1740175842079,-530.51,0.00014027,2]
[353990712,1740175842088,-500.0,0.00014027,2]
[353990715,1740175842097,-500.0,0.00014027,2]
[353990716,1740175842107,-683.46,0.00014027,2]
[353990718,1740175842117,-2167.54,0.00014027,2]
[353990721,1740175842126,-633.28,0.00014027,2]
[353990723,1740175842135,-5963.66,0.00014027,2]
[353990725,1740175842145,-500.0,0.00014027,2]
[353990727,1740175842154,-500.0,0.00014027,2]
[353990728,1740175842164,-1608.18,0.00014027,2]
[353990731,1740175842173,-624.26,0.00014027,2]
[353990733,1740175842182,-500.0,0.00014027,2]
[353990734,1740175842191,-500.0,0.00014027,2]
[353990736,1740175842200,-500.0,0.00014027,2]
[353990739,1740175842210,-500.0,0.00014027,2]
[353990741,1740175842219,-596.69,0.00014027,2]
[353990743,1740175842228,-500.0,0.00014027,2]
[353990745,1740175842237,-512.14,0.00014027,2]
[353990746,1740175842247,-3505.3,0.00014027,2]
[353990749,1740175842256,-1101.28,0.00014027,2]
[353990751,1740175842265,-500.0,0.00014027,2]
[353990753,1740175842274,-500.0,0.00014027,2]
[353990755,1740175842284,-663.88,0.00014027,2]
[353990757,1740175842293,-2265.38,0.00014027,2]
[353990758,1740175842306,-841.18,0.00014027,2]
[353990760,1740175842317,-500.0,0.00014027,2]
[353990763,1740175842328,-500.0,0.00014027,2]
[353990765,1740175842340,-870.29,0.00014027,2]
[353990767,1740175842350,-791.65,0.00014027,2]
[353990769,1740175842359,-500.0,0.00014027,2]
[353990771,1740175842368,-420.0,0.00014084,2]
[353990773,1740175842377,-151.0,0.000141,2]
[353990775,1740175842386,-557.1188801,0.000141,2]
[353990776,1740175842395,-500.0,0.00014109,2]
[353990778,1740175842405,-500.0,0.00014109,2]
[353990780,1740175842415,-530.51,0.00014109,2]
[353990782,1740175842424,-500.0,0.00014109,2]
[353990784,1740175842433,-500.0,0.00014109,2]
[353990786,1740175842443,-683.46,0.00014109,2]
[353990788,1740175842452,-2167.54,0.00014109,2]
[353990790,1740175842462,-633.28,0.00014109,2]
[353990792,1740175842471,-5963.66,0.00014109,2]
[353990795,1740175842481,-500.0,0.00014109,2]
[353990797,1740175842490,-500.0,0.00014109,2]
[353990798,1740175842500,-1608.18,0.00014109,2]
[353990800,1740175842509,-624.26,0.00014109,2]
[353990803,1740175842518,-435.49,0.00014109,2]
[353990805,1740175842528,-500.0,0.00014109,2]
[353990807,1740175842537,-500.0,0.00014109,2]
[353990809,1740175842547,-500.0,0.00014109,2]
[353990810,1740175842559,-596.69,0.00014109,2]
[353990812,1740175842569,-500.0,0.00014109,2]
[353990815,1740175842578,-512.14,0.00014109,2]
[353990818,1740175842587,-3505.3,0.00014109,2]
[353990821,1740175842597,-1101.28,0.00014109,2]
[353990823,1740175842610,-500.0,0.00014109,2]
[353990825,1740175842619,-500.0,0.00014109,2]
[353990827,1740175842628,-663.88,0.00014109,2]
[353990830,1740175842638,-2265.38,0.00014109,2]
[353990832,1740175842650,-841.18,0.00014109,2]
[353990835,1740175842659,-500.0,0.00014109,2]
[353990837,1740175842669,-500.0,0.00014109,2]
[353990839,1740175842678,-870.29,0.00014109,2]
[353990841,1740175842688,-791.65,0.00014109,2]
[353990842,1740175842698,-500.0,0.00014109,2]
[353990845,1740175842709,-500.0,0.00014173,2]
[353990847,1740175842719,-500.0,0.00014191,2]
[353990848,1740175842728,-500.0,0.00014191,2]
[353990853,1740175842738,-530.51,0.00014191,2]
[353990857,1740175842748,-500.0,0.00014191,2]
[353990861,1740175842758,-500.0,0.00014191,2]
[353990865,1740175842767,-683.46,0.00014191,2]
[353990869,1740175842777,-2167.54,0.00014191,2]
[353990891,1740175842867,-633.28,0.00014191,2]
[353990894,1740175842878,-5963.66,0.00014191,2]
[353990897,1740175842887,-500.0,0.00014191,2]
[353990899,1740175842897,-500.0,0.00014191,2]
[353990901,1740175842906,-1608.18,0.00014191,2]
[353990903,1740175842916,-624.26,0.00014191,2]
[353990905,1740175842925,-500.0,0.00014191,2]
[353990907,1740175842935,-500.0,0.00014191,2]
[353990909,1740175842944,-500.0,0.00014191,2]
[353990911,1740175842954,-500.0,0.00014191,2]
[353990913,1740175842963,-596.69,0.00014191,2]
[353990915,1740175842972,-512.14,0.00014191,2]
[353990917,1740175842982,-3505.3,0.00014191,2]
[353990919,1740175842991,-1101.28,0.00014191,2]
[353990922,1740175843001,-500.0,0.00014191,2]
[353990924,1740175843011,-500.0,0.00014191,2]
[353990926,1740175843021,-663.88,0.00014191,2]
[353990928,1740175843030,-2265.38,0.00014191,2]
[353990930,1740175843039,-841.18,0.00014191,2]
[353990932,1740175843049,-500.0,0.00014191,2]
[353990934,1740175843059,-500.0,0.00014191,2]
[353990936,1740175843068,-870.29,0.00014191,2]
[353990938,1740175843077,-791.65,0.00014191,2]
[353990940,1740175843086,-500.0,0.00014191,2]
[353990942,1740175843096,-151.0,0.000142,2]
[353990944,1740175843107,-151.0,0.000142,2]
[353990946,1740175843117,-151.0,0.000142,2]
[353990948,1740175843126,-169.63313455,0.00014221,2]
[353990950,1740175843136,-295.74603666,0.0001424,2]
[353990952,1740175843145,-7438.69753278,0.00014247,2]
[353990954,1740175843154,-500.0,0.00014273,2]
[353990956,1740175843164,-530.51,0.00014273,2]
[353990958,1740175843173,-500.0,0.00014273,2]
[353990960,1740175843182,-500.0,0.00014273,2]
[353990962,1740175843191,-683.46,0.00014273,2]
[353990964,1740175843200,-2167.54,0.00014273,2]
[353990966,1740175843209,-633.28,0.00014273,2]
[353990968,1740175843219,-5963.66,0.00014273,2]
[353990970,1740175843228,-500.0,0.00014273,2]
[353990972,1740175843239,-500.0,0.00014273,2]
[353990974,1740175843248,-1608.18,0.00014273,2]
[353990976,1740175843258,-624.26,0.00014273,2]
[353990978,1740175843267,-500.0,0.00014273,2]
[353990980,1740175843276,-500.0,0.00014273,2]
[353990982,1740175843286,-500.0,0.00014273,2]
[353990984,1740175843295,-500.0,0.00014273,2]
[353990986,1740175843306,-596.69,0.00014273,2]
[353990988,1740175843316,-512.14,0.00014273,2]
[353990990,1740175843325,-3505.3,0.00014273,2]
[353990991,1740175843335,-1101.28,0.00014273,2]
[353990993,1740175843344,-500.0,0.00014273,2]
[353990995,1740175843354,-500.0,0.00014273,2]
[353990998,1740175843364,-663.88,0.00014273,2]
[353991001,1740175843373,-2265.38,0.00014273,2]
[353991003,1740175843383,-841.18,0.00014273,2]
[353991006,1740175843392,-305.69,0.00014273,2]
[353991009,1740175843402,-500.0,0.00014273,2]
[353991012,1740175843411,-870.29,0.00014273,2]
[353991014,1740175843420,-791.65,0.00014273,2]
[353991016,1740175843429,-500.0,0.00014273,2]
[353991018,1740175843439,-151.0,0.000143,2]
[353991020,1740175843449,-151.0,0.000143,2]
[353991022,1740175843458,-151.0,0.000143,2]
[353991024,1740175843467,-500.0,0.00014356,2]
[353991026,1740175843476,-530.51,0.00014356,2]
[353991028,1740175843485,-234.40336587,0.00014356,2]
[353991030,1740175843495,-500.0,0.00014356,2]
[353991032,1740175843504,-683.46,0.00014356,2]
[353991034,1740175843513,-2167.54,0.00014356,2]
[353991036,1740175843523,-633.28,0.00014356,2]
[353991038,1740175843533,-5963.66,0.00014356,2]
[353991040,1740175843544,-500.0,0.00014356,2]
[353991042,1740175843555,-500.0,0.00014356,2]
[353991044,1740175843564,-1608.18,0.00014356,2]
[353991046,1740175843574,-624.26,0.00014356,2]
[353991048,1740175843583,-500.0,0.00014356,2]
[353991050,1740175843592,-500.0,0.00014356,2]
[353991052,1740175843604,-500.0,0.00014356,2]
[353991054,1740175843613,-156.63,0.00014356,2]
[353991056,1740175843623,-596.69,0.00014356,2]